bitfinex/quotes_SOLUSD_20250809
["timestamp","ask_amount","ask_price","bid_price","bid_amount"]
[1754719085289,1.38150305,181.09,181.08,9.666]
[1754719085876,1.38150305,181.09,181.08,0.06]
[1754719086079,1.38150305,181.09,181.08,9.666]
[1754719086278,2.06150305,181.09,181.08,0.06]
[1754719086808,7.58361912,181.09,181.08,0.06]
[1754719086991,7.58361912,181.09,181.08,9.666]
[1754719088413,6.90361912,181.09,181.08,9.666]
[1754719089606,7.58361912,181.09,181.08,0.06]
[1754719089794,7.58361912,181.09,181.08,9.666]
[1754719090198,6.90361912,181.09,181.08,9.666]
[1754719090388,7.58361912,181.09,181.08,0.06]
[1754719090805,7.58361912,181.09,181.08,9.666]
[1754719091312,7.58379895,181.09,181.08,9.666]
[1754719092194,7.58379895,181.09,181.08,0.06]
[1754719092402,11.29612151,181.09,181.08,9.666]
[1754719093313,7.58379895,181.09,181.08,9.666]
[1754719093893,11.29612151,181.09,181.08,9.666]
[1754719094092,10.61612151,181.09,181.08,9.666]
[1754719094600,6.90379895,181.09,181.08,9.666]
[1754719095008,7.58379895,181.09,181.08,9.666]
[1754719095321,7.58379895,181.09,181.08,0.06]
[1754719095683,11.29612151,181.09,181.08,0.06]
[1754719095887,7.58379895,181.09,181.08,0.06]
[1754719096089,16.23966144,181.09,181.08,0.06]
[1754719099831,6.90379895,181.09,181.08,0.06]
[1754719100193,1.38168288,181.09,181.08,0.06]
[1754719100393,6.90379895,181.09,181.08,10.316]
[1754719100621,1.38168288,181.09,181.08,10.316]
[1754719100822,5.52211607,181.09,181.08,10.316]
[1754719101817,3.71084952,181.11,181.09,9.606]
[1754719102019,1.38156313,181.1,181.09,10.256]
[1754719102343,0.02,181.12,181.11,9.606]
[1754719102499,0.02,181.12,181.11,15.19953993]
[1754719104496,0.02,181.12,181.11,9.606]
[1754719104699,1.40132796,181.12,181.11,9.606]
[1754719104901,7.02486789,181.12,181.11,9.606]
[1754719105209,10.73784073,181.12,181.1,9.606]
[1754719105409,9.06774868,181.11,181.08,0.06]
[1754719105613,4.94353993,181.09,181.08,0.06]
[1754719105810,13.91015566,181.09,181.08,0.06]
[1754719106014,4.94353993,181.07,181.06,0.06]
[1754719106217,6.32486789,181.07,181.06,0.06]
[1754719106419,10.71784073,181.07,181.06,0.06]
[1754719107800,11.29702681,181.07,181.06,0.06]
[1754719108203,15.56056674,181.07,181.06,0.06]
[1754719108398,6.90405397,181.07,181.06,0.06]
[1754719108703,6.90405397,181.07,181.06,0.71]
[1754719109325,1.38132796,181.07,181.06,0.71]
[1754719109520,18.74868484,181.1,181.06,5.65353993]
[1754719109521,5.5221115,181.1,181.06,5.65353993]
[1754719109721,1.3816085,181.09,181.07,0.65]
[1754719109928,6.90373619,181.09,181.08,0.65]
[1754719110439,6.90363174,181.09,181.08,0.65]
[1754719111131,6.90363174,181.09,181.06,5.00353993]
[1754719111312,5.52212769,181.09,181.06,5.65353993]
[1754719111627,1.38156476,181.08,181.06,0.06]
[1754719112211,2.06156476,181.08,181.06,0.06]
[1754719112531,1.38156476,181.07,181.06,0.06]
[1754719113127,6.90429077,181.07,181.06,0.06]
[1754719113432,6.90446966,181.07,181.06,0.06]
[1754719116512,10.62325459,181.07,181.06,0.06]
[1754719117140,6.90446966,181.07,181.06,0.77]
[1754719117921,6.90446966,181.07,181.06,0.06]
[1754719118321,1.38174365,181.07,181.06,0.06]
[1754719118627,5.52217198,181.09,181.06,5.71353993]
[1754719118820,9.24164586,181.11,181.07,5.65353993]
[1754719119009,1.38148734,181.1,181.08,5.65353993]
[1754719119212,1.38147198,181.09,181.08,5.65353993]
[1754719119539,1.38147198,181.1,181.08,5.65353993]
[1754719119724,5.10161158,181.1,181.08,5.65353993]
[1754719120045,5.54126464,181.12,181.09,5.65353993]
[1754719120338,1.38143279,181.11,181.09,5.65353993]
[1754719121225,1.38143279,181.11,181.1,0.71]
[1754719121434,0.02,181.12,181.09,4.94353993]
[1754719121435,6.92266155,181.12,181.09,4.94353993]
[1754719121628,1.38143279,181.11,181.09,5.65353993]
[1754719121819,1.38143279,181.11,181.09,4.94353993]
[1754719122139,1.38143279,181.11,181.08,4.94353993]
[1754719122341,2.10143279,181.11,181.07,0.71]
[1754719122517,1.38143279,181.1,181.07,4.94353993]
[1754719122923,0.72,181.09,181.06,5.00353993]
[1754719123437,6.90396961,181.08,181.06,5.00353993]
[1754719123638,5.52242102,181.08,181.06,5.00353993]
[1754719123834,5.52181115,181.1,181.07,4.94353993]
[1754719124145,1.38154778,181.09,181.07,5.65353993]
[1754719124329,9.2411299,181.1,181.08,4.94353993]
[1754719124528,5.52181115,181.1,181.08,4.94353993]
[1754719124724,5.52181115,181.1,181.07,0.71]
[1754719124944,5.52181115,181.1,181.07,5.65353993]
[1754719125123,5.52150626,181.11,181.07,5.65353993]
[1754719125416,1.38145582,181.1,181.07,5.65353993]
[1754719125822,2.10145582,181.1,181.07,4.94353993]
[1754719126040,1.38145623,181.09,181.07,4.94353993]
[1754719126941,6.90365666,181.09,181.07,4.94353993]
[1754719127125,5.52220043,181.09,181.07,4.94353993]
[1754719127941,2.10159959,181.08,181.06,0.06]
[1754719128273,0.72,181.08,181.06,0.06]
[1754719128857,0.72,181.07,181.06,0.06]
[1754719129060,6.24272601,181.07,181.06,0.06]
[1754719129743,7.62435001,181.07,181.06,0.06]
[1754719130065,18.35348241,181.07,181.06,0.06]
[1754719130245,33.45969798,181.07,181.06,0.06]
[1754719130952,33.45980206,181.07,181.06,0.06]
[1754719131327,33.45980206,181.07,181.05,0.06]
[1754719131551,27.93707605,181.06,181.04,0.06]
[1754719131732,12.11086048,181.05,181.04,0.06]
[1754719132057,7.88732055,181.05,181.04,0.06]
[1754719132247,12.83086048,181.05,181.04,0.06]
[1754719133133,18.35419657,181.05,181.04,0.06]
[1754719133344,10.62451598,181.05,181.04,0.06]
[1754719134955,5.55271925,181.08,181.04,5.71353993]
[1754719135140,1.38170051,181.07,181.05,4.94353993]
[1754719135343,0.03,181.08,181.06,5.65353993]
[1754719135548,1.41162443,181.08,181.05,4.94353993]
[1754719135734,2.13162443,181.08,181.04,0.06]
[1754719135940,1.38167864,181.07,181.05,4.94353993]
[1754719136136,0.72,181.06,181.04,0.06]
[1754719136343,0.72,181.05,181.04,0.06]
[1754719136855,2.10191804,181.05,181.04,0.06]
[1754719137052,7.62525413,181.05,181.04,0.06]
[1754719137353,6.90525413,181.05,181.04,0.06]
[1754719139247,5.52303103,181.06,181.04,0.06]
[1754719141343,5.52272601,181.07,181.04,0.06]
[1754719141546,1.38182048,181.06,181.04,0.06]
[1754719141957,0.72,181.05,181.04,0.06]
[1754719142264,2.10182048,181.05,181.04,0.06]
[1754719143369,7.62515657,181.05,181.04,0.06]
[1754719144456,6.24333609,181.05,181.04,0.06]
[1754719144643,7.62519991,181.05,181.04,0.06]
[1754719145663,1.38186382,181.05,181.04,0.06]
[1754719145864,5.52311091,181.06,181.04,0.06]
[1754719146164,6.22311091,181.06,181.04,0.06]
[1754719146352,2.08182429,181.05,181.04,0.06]
[1754719146741,10.73946391,181.05,181.04,0.06]
[1754719147148,12.54870031,181.05,181.04,0.06]
[1754719147555,16.26272577,181.05,181.04,0.06]
[1754719148863,11.31918584,181.05,181.04,0.06]
[1754719149249,12.54870031,181.05,181.04,0.06]
[1754719149760,16.26272577,181.05,181.04,0.06]
[1754719151349,11.31918584,181.05,181.04,0.06]
[1754719151668,12.54870031,181.05,181.04,0.06]
[1754719151868,16.26272577,181.05,181.04,0.06]
[1754719153371,16.26301504,181.05,181.04,0.06]
[1754719153972,15.10621557,181.04,181.02,0.06]
[1754719154272,10.03967895,181.03,181.02,0.06]
[1754719154448,10.73967895,181.03,181.02,0.06]
[1754719154868,25.84589452,181.03,181.02,1e-08]
[1754719155064,28.19371586,181.03,181.02,1e-08]
[1754719155268,54.19371586,181.03,181.02,1e-08]
[1754719155483,28.19371586,181.03,181.02,1e-08]
[1754719156173,76.31471316,181.03,181.02,1e-08]
[1754719157087,116.39471316,181.03,181.02,1e-08]
[1754719158175,111.16685009,181.03,181.02,1e-08]
[1754719158353,97.44984082,181.03,181.02,1e-08]
[1754719159503,99.51069046,181.03,181.02,1e-08]
[1754719160768,97.44984082,181.03,181.02,1e-08]
[1754719161880,99.50989895,181.03,181.02,1e-08]
[1754719162082,97.44984082,181.03,181.02,1e-08]
[1754719162782,99.50964027,181.03,181.02,1e-08]
[1754719163079,97.44984082,181.03,181.02,1e-08]
[1754719163279,99.50942674,181.03,181.02,1e-08]
[1754719164077,99.79374988,181.03,181.02,1e-08]
[1754719164664,116.39080088,181.03,181.02,1e-08]
[1754719165273,81.64362525,181.03,181.02,1e-08]
[1754719165586,6.90605986,181.03,181.02,1e-08]
[1754719167197,11.84959979,181.03,181.02,1e-08]
[1754719168175,6.90605986,181.03,181.02,1e-08]
[1754719169602,11.84959979,181.03,181.02,1e-08]
[1754719169799,15.55869803,181.03,181.02,1e-08]
[1754719170099,16.25869803,181.03,181.02,1e-08]
[1754719170884,10.6151581,181.03,181.02,1e-08]
[1754719171482,15.55869803,181.03,181.02,1e-08]
[1754719172999,16.25869803,181.03,181.02,1e-08]
[1754719173180,11.3151581,181.03,181.02,1e-08]
[1754719173379,16.25869803,181.03,181.02,1e-08]
[1754719174380,18.32237724,181.03,181.02,1e-08]
[1754719174591,12.67883731,181.03,181.02,1e-08]
[1754719174806,15.55869803,181.03,181.02,1e-08]
[1754719175679,15.55869803,181.03,181.02,0.70000001]
[1754719176190,15.55869803,181.03,181.02,1e-08]
[1754719176586,15.55875722,181.03,181.02,1e-08]
[1754719177103,18.31251101,181.03,181.02,1e-08]
[1754719177281,16.24875722,181.03,181.02,1e-08]
[1754719178105,18.31240165,181.03,181.02,1e-08]
[1754719179092,15.55875722,181.03,181.02,1e-08]
[1754719180104,14.81295722,181.03,181.02,1e-08]
[1754719180305,9.86941729,181.03,181.02,1e-08]
[1754719180504,5.09127099,181.03,181.02,40.72000001]
[1754719180692,1.38217275,181.03,181.02,40.72000001]
[1754719182807,6.90611905,181.03,181.02,40.72000001]
[1754719183008,15.56555022,181.03,181.02,1e-08]
[1754719183608,16.25555022,181.03,181.02,1e-08]
[1754719183784,18.32043819,181.03,181.02,1e-08]
[1754719187508,38.06445165,181.03,181.02,1e-08]
[1754719187723,38.06445165,181.03,181.0,3375.18465188]
[1754719187724,38.34877479,181.03,181.0,3375.18465188]
[1754719187911,30.94353993,181.01,181.0,3375.18465188]
[1754719188109,38.79649189,181.01,181.0,3375.18465188]
[1754719188303,43.44534467,181.01,181.0,3375.18465188]
[1754719188617,44.32104854,181.01,181.0,3336.71412954]
[1754719188808,59.42726411,181.01,181.0,3336.71412954]
[1754719189124,59.21158725,181.01,181.0,3302.53963872]
[1754719189296,53.98372418,181.01,181.0,3302.53963872]
[1754719189496,58.92726411,181.01,181.0,3302.53963872]
[1754719190195,43.82104854,181.01,181.0,3302.53963872]
[1754719190400,43.13104854,181.01,181.0,3302.53963872]
[1754719191419,58.92726411,181.01,181.0,3302.53963872]
[1754719191604,38.18750861,181.01,181.0,3302.53963872]
[1754719191800,83.13104854,181.01,181.0,3302.53963872]
[1754719192906,93.98372418,181.01,181.0,3302.53963872]
[1754719193108,57.63104854,181.01,181.0,3302.53963872]
[1754719193530,55.56616057,181.01,181.0,3302.53963872]
[1754719194024,17.63270111,181.01,181.0,3302.53963872]
[1754719197413,17.59851792,181.01,181.0,3302.53963872]
[1754719198920,15.53197738,181.01,181.0,3302.53963872]
[1754719200125,14.14980463,181.01,181.0,3302.53963872]
[1754719200316,5.06401768,181.01,181.0,3343.21963872]
[1754719200501,5.55425621,181.02,181.0,3343.21963872]
[1754719200703,0.03,181.02,181.01,0.7]
[1754719201304,0.03,181.02,181.01,5.64353993]
[1754719201504,0.03,181.02,181.01,11.16809658]
[1754719201725,0.03,181.02,181.01,11.45241972]
[1754719202002,0.03,181.02,181.01,5.64353993]
[1754719202218,0.03,181.02,181.01,40.68]
[1754719202411,0.03,181.02,181.01,39.98]
[1754719202839,4.97353993,181.02,181.0,3302.53963872]
[1754719203008,1.38179128,181.01,181.0,3342.51963872]
[1754719203207,6.32533121,181.01,181.0,3302.53963872]
[1754719203508,11.85036895,181.01,181.0,3302.53963872]
[1754719203826,6.90682902,181.01,181.0,3302.53963872]
[1754719204341,1.38227237,181.01,181.0,3303.24963872]
[1754719204707,0.66227237,181.01,181.0,3314.00236366]
[1754719204927,5.55428627,181.02,181.0,3308.19317865]
[1754719205231,5.55428627,181.02,181.0,3342.49963872]
[1754719205436,0.03,181.02,181.0,3342.49963872]
[1754719208329,4.97353993,181.02,181.0,3342.49963872]
[1754719208542,0.66,181.01,181.0,3342.49963872]
[1754719209553,5.52455665,181.01,181.0,3342.49963872]
[1754719210030,9.24409702,181.01,181.0,3342.49963872]
[1754719210419,5.52455665,181.01,181.0,3342.49963872]
[1754719210939,9.24409702,181.01,181.0,3342.49963872]
[1754719211137,5.52455665,181.01,181.0,3342.49963872]
[1754719211639,9.24409702,181.01,181.0,3342.49963872]
[1754719213315,5.52455665,181.01,181.0,3342.49963872]
[1754719213920,6.18455665,181.01,181.0,3342.49963872]
[1754719214124,11.97143703,181.01,181.0,3342.49963872]
[1754719214855,9.90409702,181.01,181.0,3342.49963872]
[1754719215034,11.9714505,181.01,181.0,3342.49963872]
[1754719215651,11.97139551,181.01,181.0,3342.49963872]
[1754719215813,9.90409702,181.01,181.0,3342.49963872]
[1754719216018,11.97138401,181.01,181.0,3302.53963872]
[1754719216355,9.24409702,181.01,181.0,3302.53963872]
[1754719217142,5.52455665,181.01,181.0,3302.53963872]
[1754719217938,7.59191195,181.01,181.0,3342.47963872]
[1754719218133,6.18455665,181.01,181.0,3342.47963872]
[1754719218323,9.90409702,181.01,181.0,3342.47963872]
[1754719218528,16.91495951,181.01,181.0,3342.47963872]
[1754719218746,11.97141958,181.01,181.0,3342.47963872]
[1754719219327,11.97150603,181.01,181.0,3302.53963872]
[1754719220643,16.91504596,181.01,181.0,3302.53963872]
[1754719220955,32.02126153,181.01,181.0,3302.53963872]
[1754719221118,32.05126153,181.01,181.0,3302.53963872]
[1754719221627,71.99126153,181.01,181.0,3302.53963872]
[1754719221825,76.64011431,181.01,181.0,3302.53963872]
[1754719222158,68.27172116,181.01,181.0,3302.53963872]
[1754719222347,98.27641525,181.01,181.0,3293.20656447]
[1754719226248,97.99209211,181.01,181.0,3293.20656447]
[1754719226767,93.04855218,181.01,181.0,3293.20656447]
[1754719226933,82.22587654,181.01,181.0,3293.20656447]
[1754719227136,42.28587654,181.01,181.0,3293.20656447]
[1754719227653,35.2749276,181.01,181.0,3293.20656447]
[1754719227824,37.34110838,181.01,181.0,3293.20656447]
[1754719228158,16.28464831,181.01,181.0,3293.20656447]
[1754719228468,16.94492036,181.01,181.0,3293.20656447]
[1754719228766,11.34138043,181.01,181.0,3293.20656447]
[1754719228971,5.55455665,181.01,181.0,3333.12656447]
[1754719229130,14.21846753,181.01,181.0,3333.12656447]
[1754719229331,14.21846753,181.01,181.0,3293.20656447]
[1754719230057,16.28498918,181.01,181.0,3293.20656447]
[1754719230241,16.94498918,181.01,181.0,3293.20656447]
[1754719230849,12.00144925,181.01,181.0,3293.20656447]
[1754719231036,13.22461823,181.01,181.0,3293.20656447]
[1754719231336,16.94498918,181.01,181.0,3293.20656447]
[1754719231755,11.34144925,181.01,181.0,3293.20656447]
[1754719232056,5.55455665,181.01,181.0,3293.20656447]
[1754719232733,12.56452419,181.01,181.0,3293.20656447]
[1754719232933,32.0484464,181.01,181.0,3293.20656447]
[1754719233134,16.28223083,181.01,181.0,3293.20656447]
[1754719233749,16.99223083,181.01,181.0,3293.20656447]
[1754719233942,11.3386909,181.01,181.0,3293.20656447]
[1754719234133,7.62097573,181.01,181.0,3293.20656447]
[1754719234342,11.3386909,181.01,181.0,3293.20656447]
[1754719234555,16.99223083,181.01,181.0,3293.20656447]
[1754719234964,32.0984464,181.01,181.0,3293.20656447]
[1754719236833,71.9984464,181.01,181.0,3293.20656447]
[1754719237256,72.28276954,181.01,181.0,3293.20656447]
[1754719237457,67.33922961,181.01,181.0,3293.20656447]
[1754719237638,72.28276954,181.01,181.0,3293.20656447]
[1754719237960,72.28276954,181.01,181.0,3259.5663787]
[1754719238143,72.28276954,181.01,181.0,3176.32563066]
[1754719238346,72.28276954,181.01,181.0,3097.52984889]
[1754719238755,72.28276954,181.01,181.0,3021.70109457]
[1754719238931,72.28276954,181.01,181.0,2980.87223845]
[1754719239128,72.28276954,181.01,181.0,2940.44041399]
[1754719239443,72.28276954,181.01,181.0,2905.69550784]
[1754719239661,72.28276954,181.01,181.0,2871.59953503]
[1754719239833,72.28276954,181.01,181.0,2807.94095165]
[1754719241052,71.9984464,181.01,181.0,2807.94095165]
[1754719241377,72.28276954,181.01,181.0,2807.94095165]
[1754719242174,72.28276954,181.01,181.0,2778.66667015]
[1754719242377,72.28276954,181.01,181.0,2750.11896206]
[1754719242552,72.28276954,181.01,181.0,2691.6411816]
[1754719242758,72.28276954,181.01,181.0,2662.40229137]
[1754719242957,72.28276954,181.01,181.0,2634.16371411]
[1754719243567,72.28276954,181.01,181.0,2604.13970541]
[1754719245162,72.28276954,181.01,181.0,2576.38654651]
[1754719245568,72.2815277,181.01,181.0,2576.38654651]
[1754719247469,72.2815277,181.01,181.0,2548.37656142]
[1754719249682,72.2815277,181.01,181.0,2538.37656142]
[1754719249890,72.2815277,181.01,181.0,2509.7038298]
[1754719250066,97.5715277,181.01,181.0,2509.7038298]
[1754719250578,12.56451566,181.01,181.0,2509.7038298]
[1754719250775,52.44451566,181.01,181.0,2509.7038298]
[1754719251860,7.62097573,181.01,181.0,2509.7038298]
[1754719252065,12.56451566,181.01,181.0,2509.7038298]
[1754719252999,27.67073123,181.01,181.0,2509.7038298]
[1754719253565,22.7271913,181.01,181.0,2509.7038298]
[1754719253764,27.67073123,181.01,181.0,2509.7038298]
[1754719254068,71.98038739,181.01,181.0,2509.7038298]
[1754719254877,72.26471053,181.01,181.0,2509.7038298]
[1754719255063,72.26471053,181.01,181.0,2481.47382032]
[1754719255269,72.26471053,181.01,181.0,2452.65911215]
[1754719255468,72.26471053,181.01,181.0,2396.22332998]
[1754719256197,72.26471053,181.01,181.0,2385.46165178]
[1754719256494,72.26471053,181.01,181.0,2353.17661718]
[1754719256893,71.55471053,181.01,181.0,2342.41493898]
[1754719259374,72.26471053,181.01,181.0,2342.41493898]
[1754719259982,72.26471053,181.01,181.0,2285.90110265]
[1754719260814,26.44684746,181.01,181.0,2285.90110265]
[1754719260976,12.56451566,181.01,181.0,2285.90110265]
[1754719261178,16.28620515,181.01,181.0,2285.90110265]
[1754719261881,31.39242072,181.01,181.0,2285.90110265]
[1754719262472,32.10242072,181.01,181.0,2285.90110265]
[1754719262776,32.38674386,181.01,181.0,2285.90110265]
[1754719262973,32.38674386,181.01,181.0,2229.49899863]
[1754719263194,32.38674386,181.01,181.0,2201.43720765]
[1754719263406,32.38674386,181.01,181.0,2172.17888164]
[1754719263602,32.38674386,181.01,181.0,2142.81033481]
[1754719263778,32.38674386,181.01,181.0,2082.46624086]
[1754719264595,28.66505437,181.01,181.0,2082.46624086]
[1754719264787,32.38852455,181.01,181.0,2082.46624086]
[1754719265397,31.67852455,181.01,181.0,2082.46624086]
[1754719265574,57.39420141,181.01,181.0,2082.46624086]
[1754719265977,32.37852455,181.01,181.0,2082.46624086]
[1754719266280,48.97924955,181.01,181.0,2082.46624086]
[1754719266683,32.37852455,181.01,181.0,2082.46624086]
[1754719268997,37.32206448,181.01,181.0,2082.46624086]
[1754719269195,37.32206448,181.01,181.0,2044.35468698]
[1754719269505,37.32206448,181.01,181.0,1969.04326628]
[1754719269680,37.32206448,181.01,181.0,1895.01255071]
[1754719269876,37.32206448,181.01,181.0,1817.66206612]
[1754719270123,37.32206448,181.01,181.0,1778.18984348]
[1754719270581,37.32206448,181.01,181.0,1740.88862753]
[1754719270911,32.37852455,181.01,181.0,1645.71106469]
[1754719271211,31.53636298,181.01,181.0,1645.71106469]
[1754719271409,31.39420141,181.01,181.0,1645.71106469]
[1754719271711,31.67852455,181.01,181.0,1645.71106469]
[1754719272010,31.53636298,181.01,181.0,1645.71106469]
[1754719272313,31.67852455,181.01,181.0,1645.71106469]
[1754719273015,32.37852455,181.01,181.0,1645.71106469]
[1754719273184,72.21852455,181.01,181.0,1645.71106469]
[1754719273996,88.81833055,181.01,181.0,1645.71106469]
[1754719274405,72.21852455,181.01,181.0,1645.71106469]
[1754719275684,88.81924955,181.01,181.0,1645.71106469]
[1754719277077,93.76278948,181.01,181.0,1645.71106469]
[1754719277283,93.76278948,181.01,181.0,1583.95042222]
[1754719277603,93.76278948,181.01,181.0,1575.94375889]
[1754719278282,93.76278948,181.01,181.0,1514.90311642]
[1754719278497,93.76278948,181.01,181.0,1506.89645309]
[1754719278823,88.23823283,181.01,181.0,1506.89645309]
[1754719279116,98.31339086,181.01,181.0,1506.89645309]
[1754719279338,98.31339086,181.01,181.0,1429.59270496]
[1754719279905,98.86584652,181.01,181.0,1334.5552215]
[1754719280099,101.56444126,181.01,181.0,1281.77102136]
[1754719280322,121.06317121,181.01,181.0,1256.96727337]
[1754719281201,132.93641098,181.01,181.0,1195.9266309]
[1754719281416,132.93641098,181.01,181.0,1179.66352524]
[1754719282008,128.28207326,181.01,181.0,1179.66352524]
[1754719282210,128.28207326,181.01,181.0,1118.62288277]
[1754719282408,128.28207326,181.01,181.0,1102.35977711]
[1754719282930,131.1705932,181.01,181.0,1102.35977711]
[1754719283103,131.1705932,181.01,181.0,1041.31913464]
[1754719283307,123.95169115,181.01,181.0,1033.31247131]
[1754719283525,123.95169115,181.01,181.0,1025.05602898]
[1754719283922,64.49100964,181.01,181.0,1025.05602898]
[1754719284120,104.31100964,181.01,181.0,972.27182884]
[1754719284317,120.90100964,181.01,181.0,923.69808085]
[1754719284637,121.04317121,181.01,181.0,923.69808085]
[1754719285132,121.04317121,181.01,181.0,870.91388071]
[1754719285428,121.04317121,181.01,181.0,854.65077505]
[1754719286011,64.49100964,181.01,181.0,854.65077505]
[1754719286199,104.33100964,181.01,181.0,809.87323824]
[1754719286404,104.47317121,181.01,181.0,793.61013258]
[1754719286703,104.33100964,181.01,181.0,793.61013258]
[1754719286902,104.47317121,181.01,181.0,793.61013258]
[1754719287226,100.74970103,181.01,181.0,748.83259577]
[1754719287419,100.74970103,181.01,181.0,732.56949011]
[1754719288218,100.19724537,181.01,181.0,687.7919533]
[1754719288529,100.19724537,181.01,181.0,671.52884764]
[1754719289023,95.25370544,181.01,181.0,671.52884764]
[1754719289736,100.19724537,181.01,181.0,671.52884764]
[1754719290431,107.41614742,181.01,181.0,610.20400517]
[1754719290626,102.47260749,181.01,181.0,610.20400517]
[1754719290827,94.55370544,181.01,181.0,610.20400517]
[1754719291329,84.25528236,181.01,181.0,610.20400517]
[1754719291517,84.37744393,181.01,181.0,610.20400517]
[1754719291920,84.23528236,181.01,181.0,610.20400517]
[1754719292335,68.98690522,181.01,181.0,610.20400517]
[1754719292553,7.03401356,181.01,181.0,610.91400517]
[1754719292714,41.91047363,181.01,181.0,610.91400517]
[1754719293045,46.85401356,181.01,181.0,610.91400517]
[1754719293525,41.91047363,181.01,181.0,610.91400517]
[1754719293931,39.85,181.01,181.0,610.91400517]
[1754719294107,26.03,181.01,181.0,610.91400517]
[1754719295032,28.08971574,181.01,181.0,610.91400517]
[1754719295807,28.08969595,181.01,181.0,610.91400517]
[1754719296416,2.08976891,181.01,181.0,610.91400517]
[1754719297107,0.03,181.01,181.0,610.91400517]
[1754719297309,0.03,181.01,181.0,615.8575451]
[1754719297549,0.03,181.01,181.0,610.91400517]
[1754719297908,2.08986531,181.01,181.0,610.91400517]
[1754719298341,2.08986531,181.01,181.0,610.20400517]
[1754719300751,7.03340524,181.01,181.0,610.20400517]
[1754719300956,23.11394395,181.01,181.0,610.20400517]
[1754719301113,39.71558795,181.01,181.0,610.20400517]
[1754719301926,23.11394395,181.01,181.0,610.20400517]
[1754719302432,22.42394395,181.01,181.0,610.20400517]
[1754719304831,23.11394395,181.01,181.0,610.20400517]
[1754719305145,30.31758844,181.01,181.0,610.20400517]
[1754719305442,46.92198844,181.01,181.0,610.20400517]
[1754719306140,51.86552837,181.01,181.0,610.20400517]
[1754719306851,41.28844851,181.01,181.0,610.20400517]
[1754719307025,46.23198844,181.01,181.0,610.20400517]
[1754719307540,46.92198844,181.01,181.0,610.20400517]
[1754719308547,51.86552837,181.01,181.0,610.20400517]
[1754719309126,51.86552837,181.01,181.0,549.1633627]
[1754719309936,61.86552837,181.01,181.0,541.15669937]
[1754719310134,67.39769503,181.01,181.0,480.1160569]
[1754719310844,57.51061517,181.01,181.0,480.1160569]
[1754719311055,67.39769503,181.01,181.0,480.1160569]
[1754719311239,67.39769503,181.01,181.0,411.0687511]
[1754719312139,67.39769503,181.01,181.0,350.02810863]
[1754719312446,75.93270322,181.01,181.0,342.0214453]
[1754719313121,75.93270322,181.01,181.0,280.98080283]
[1754719313321,75.93270322,181.01,181.0,272.9741395]
[1754719313948,83.15160527,181.01,181.0,240.94769717]
[1754719314130,83.15160527,181.01,181.0,179.9070547]
[1754719314532,83.15160527,181.01,181.0,171.90039137]
[1754719315137,83.15160527,181.01,181.0,110.8597489]
[1754719315438,83.15160527,181.01,181.0,102.85308557]
[1754719315843,83.0094437,181.01,181.0,102.85308557]
[1754719316049,122.93160527,181.01,181.0,102.85308557]
[1754719316243,122.93160527,181.01,181.0,49.81910643]
[1754719316441,112.76020227,181.01,181.0,49.81910643]
[1754719316628,111.95728213,181.01,181.0,49.81910643]
[1754719316834,121.95728213,181.01,181.0,49.81910643]
[1754719317034,122.7894437,181.01,181.0,49.81910643]
[1754719317255,120.72957839,181.01,181.0,49.81910643]
[1754719317435,122.79099886,181.01,181.0,49.81910643]
[1754719317641,15.10621557,180.99,180.98,0.06]
[1754719317829,41.10621557,180.97,180.96,0.06]
[1754719318034,88.17549911,180.97,180.96,0.06]
[1754719319429,73.06928354,180.97,180.96,0.75]
[1754719319948,73.06928354,180.97,180.96,0.06]
[1754719320435,73.06928354,180.97,180.96,0.75]
[1754719321154,72.92712197,180.97,180.96,0.75]
[1754719321458,73.06928354,180.97,180.96,0.75]
[1754719322430,67.84142047,180.97,180.96,0.75]
[1754719322633,41.84142047,180.97,180.96,0.75]
[1754719326756,42.81574361,180.97,180.96,0.06]
[1754719326959,0.28432314,180.92,180.9,0.06]
[1754719327182,45.33574361,180.91,180.9,0.06]
[1754719327337,56.85292803,180.91,180.9,0.06]
[1754719327665,70.39097015,180.91,180.9,0.06]
[1754719327839,28.03097015,180.91,180.9,0.06]
[1754719328159,23.08743022,180.91,180.9,0.06]
[1754719328364,28.03097015,180.91,180.9,0.06]
[1754719328859,15.10621557,180.89,180.88,19.12679672]
[1754719329086,78.51319246,180.89,180.88,19.12679672]
[1754719329253,86.09340824,180.89,180.88,19.12679672]
[1754719329563,83.83330368,180.89,180.88,19.12679672]
[1754719329945,26.28708811,180.89,180.88,19.12679672]
[1754719330155,21.34354818,180.89,180.88,19.12679672]
[1754719330645,26.28708811,180.89,180.88,19.12679672]
[1754719330835,21.05922504,180.89,180.88,19.12679672]
[1754719331041,46.21871611,180.89,180.88,19.12679672]
[1754719331244,15.55949932,180.89,180.88,19.12679672]
[1754719331444,41.55949932,180.89,180.88,19.12679672]
[1754719331649,20.50303925,180.89,180.88,19.12679672]
[1754719331967,24.20700006,180.89,180.88,19.12679672]